bitfinex/quotes_SOLUSD_20251231
["timestamp","ask_amount","ask_price","bid_price","bid_amount"]
[1767190278251,8.0646373,127.07,127.03,0.68]
[1767190278425,0.69,127.12,127.06,7.3746373]
[1767190278743,7.86563888,127.14,127.06,7.3746373]
[1767190278744,7.3746373,127.1,127.06,7.3746373]
[1767190279043,8.0846373,127.1,127.06,7.3746373]
[1767190279346,7.3746373,127.11,127.07,8.0746373]
[1767190279645,5.86517487,127.1,127.07,8.0746373]
[1767190279842,8.0846373,127.11,127.07,0.7]
[1767190280049,5.86517287,127.1,127.07,8.0746373]
[1767190280233,8.0346373,127.1,127.05,0.7]
[1767190280437,0.66,127.1,127.05,8.57066696]
[1767190280637,0.66,127.1,127.06,7.3746373]
[1767190280837,8.0346373,127.1,127.06,7.3746373]
[1767190281039,5.86598094,127.09,127.05,15.94530426]
[1767190281239,0.66,127.1,127.06,8.0446373]
[1767190281438,5.86732124,127.09,127.06,8.0446373]
[1767190281639,0.66,127.13,127.06,8.0446373]
[1767190281839,8.0346373,127.11,127.06,8.0446373]
[1767190282040,5.86732213,127.1,127.07,7.3746373]
[1767190282342,5.86732213,127.09,127.05,7.87066696]
[1767190282548,8.0346373,127.1,127.06,7.8702339]
[1767190283556,8.0346373,127.1,127.06,15.2448712]
[1767190284052,0.66,127.1,127.06,78.0448712]
[1767190284248,8.0346373,127.1,127.06,78.0448712]
[1767190284732,8.0346373,127.1,127.06,78.7148712]
[1767190286353,7.3746373,127.11,127.07,8.0446373]
[1767190287141,8.0346373,127.12,127.07,8.0446373]
[1767190287336,5.87209194,127.11,127.07,15.91386797]
[1767190287541,8.0346373,127.12,127.07,15.91386797]
[1767190287755,5.87209295,127.11,127.07,15.24386797]
[1767190287964,0.66,127.12,127.08,8.0446373]
[1767190288257,0.66,127.12,127.11,2.0]
[1767190288455,5.87151729,127.12,127.11,2.0]
[1767190288632,7.3746373,127.13,127.11,2.0]
[1767190288829,8.0346373,127.13,127.11,2.0]
[1767190289052,7.3746373,127.14,127.11,2.0]
[1767190289434,7.3746373,127.13,127.11,2.0]
[1767190290464,8.0346373,127.14,127.11,2.0]
[1767190291346,7.3746373,127.13,127.11,2.0]
[1767190291549,0.66,127.14,127.11,2.0]
[1767190291751,7.3746373,127.13,127.11,2.0]
[1767190292058,13.2452699,127.12,127.09,62.8]
[1767190292257,14.38,127.15,127.09,62.8]
[1767190292562,7.3746373,127.12,127.08,71.3390246]
[1767190294135,7.3746373,127.11,127.08,71.3390246]
[1767190294334,7.3746373,127.11,127.08,63.47]
[1767190294564,7.3746373,127.11,127.08,71.33899586]
[1767190295259,7.3746373,127.11,127.08,63.47]
[1767190295566,7.3746373,127.11,127.08,0.67]
[1767190296066,7.3746373,127.13,127.09,0.67]
[1767190296364,5.8722394,127.12,127.09,0.67]
[1767190296565,7.3746373,127.13,127.09,0.67]
[1767190296740,5.87219888,127.12,127.09,8.0446373]
[1767190296940,7.3746373,127.13,127.09,8.0446373]
[1767190297140,5.87219788,127.12,127.09,8.0446373]
[1767190297348,7.3746373,127.13,127.09,8.0446373]
[1767190297647,5.87296989,127.12,127.09,8.0446373]
[1767190297848,14.38,127.15,127.09,8.0446373]
[1767190298169,7.3746373,127.13,127.09,8.0446373]
[1767190298355,13.2476053,127.12,127.09,0.67]
[1767190298549,7.3746373,127.12,127.09,0.67]
[1767190300149,14.38,127.15,127.09,0.67]
[1767190300467,7.3746373,127.12,127.09,0.67]
[1767190301267,14.38,127.15,127.09,7.86832908]
[1767190301498,7.3746373,127.13,127.1,0.67]
[1767190301660,7.3746373,127.12,127.1,0.67]
[1767190303956,14.38,127.15,127.1,0.67]
[1767190304159,7.3746373,127.12,127.1,0.67]
[1767190305854,7.9628992,127.18,127.1,7.86781332]
[1767190306063,13.25702244,127.17,127.14,0.67]
[1767190306265,5.88238514,127.16,127.14,0.67]
[1767190306475,5.88238514,127.15,127.14,0.67]
[1767190307375,7.3746373,127.17,127.14,0.67]
[1767190307676,13.2528987,127.16,127.14,0.67]
[1767190307844,7.3746373,127.16,127.14,0.67]
[1767190308249,13.25154146,127.15,127.11,8.53697023]
[1767190308450,7.3746373,127.14,127.11,8.53697023]
[1767190308874,7.3746373,127.14,127.12,0.67]
[1767190309254,14.38,127.17,127.1,7.86752389]
[1767190309255,7.3746373,127.13,127.1,7.86752389]
[1767190309455,7.3746373,127.12,127.09,8.53818223]
[1767190309672,7.3746373,127.12,127.09,7.86818223]
[1767190309878,7.3746373,127.1,127.08,7.86874698]
[1767190310080,7.3746373,127.11,127.09,0.67]
[1767190311080,7.3746373,127.1,127.09,0.67]
[1767190312580,11.9778421,127.1,127.09,0.67]
[1767190312993,11.9778421,127.1,127.07,27.54340674]
[1767190313193,11.9778421,127.11,127.07,27.54340674]
[1767190313391,11.9778421,127.11,127.08,0.66]
[1767190313596,11.9778421,127.12,127.08,0.66]
[1767190313792,14.38,127.15,127.08,11.9778421]
[1767190314096,11.9778421,127.12,127.09,0.66]
[1767190314299,14.38,127.15,127.09,0.66]
[1767190314599,11.9778421,127.13,127.09,0.66]
[1767190314782,11.9778421,127.12,127.09,0.66]
[1767190315090,11.9778421,127.12,127.09,7.8684108]
[1767190315287,11.9778421,127.12,127.1,0.66]
[1767190315868,11.9778421,127.11,127.09,0.66]
[1767190316072,11.9778421,127.11,127.09,63.46]
[1767190316533,11.9778421,127.11,127.09,62.8]
[1767190317275,14.38,127.15,127.09,62.8]
[1767190317469,11.9778421,127.11,127.09,62.8]
[1767190319299,11.9778421,127.11,127.08,8.52874652]
[1767190320596,11.9778421,127.13,127.09,0.66]
[1767190320898,5.88575378,127.12,127.09,0.66]
[1767190321105,5.88575378,127.11,127.09,0.66]
[1767190321403,11.9778421,127.13,127.09,0.66]
[1767190321570,26.36788379,127.18,127.11,11.9778421]
[1767190321571,11.9778421,127.16,127.11,11.9778421]
[1767190321773,12.6578421,127.16,127.12,11.9778421]
[1767190322180,12.1578421,127.16,127.12,11.9778421]
[1767190322497,0.68,127.16,127.12,11.9778421]
[1767190322676,12.6578421,127.16,127.12,11.9778421]
[1767190322992,0.68,127.16,127.12,20.50437689]
[1767190323576,0.68,127.16,127.13,12.6378421]
[1767190323782,27.1378421,127.18,127.13,12.6378421]
[1767190323984,0.68,127.17,127.14,12.6378421]
[1767190324197,0.68,127.17,127.14,0.66]
[1767190324395,0.68,127.17,127.13,12.6378421]
[1767190325098,0.68,127.17,127.13,20.50348461]
[1767190325703,0.68,127.17,127.13,0.66]
[1767190325896,12.6578421,127.17,127.13,8.52585767]
[1767190326296,11.9778421,127.16,127.13,0.66]
[1767190327008,11.9778421,127.16,127.13,8.52592716]
[1767190327195,12.6578421,127.17,127.13,8.52592716]
[1767190328003,0.68,127.17,127.13,71.32592716]
[1767190328199,12.6578421,127.17,127.13,83.30376926]
[1767190328587,12.6578421,127.17,127.13,71.32592716]
[1767190328786,12.6578421,127.17,127.13,83.30376926]
[1767190328993,0.68,127.17,127.13,83.30376926]
[1767190329193,12.6578421,127.17,127.13,83.30376926]
[1767190330880,12.6578421,127.17,127.13,71.32592716]
[1767190332512,0.1,127.18,127.13,102.30867919]
[1767190332709,0.1,127.18,127.13,90.33083709]
[1767190332885,11.9778421,127.16,127.13,71.32592716]
[1767190333303,12.6578421,127.17,127.13,71.32592716]
[1767190333902,11.9778421,127.15,127.13,62.8]
[1767190334103,11.9778421,127.15,127.13,71.32595625]
[1767190334588,5.51354305,127.16,127.13,71.32595625]
[1767190334789,0.68,127.16,127.13,0.66]
[1767190334998,5.51354305,127.16,127.13,0.66]
[1767190337694,0.1,127.18,127.13,8.52596177]
[1767190337895,5.87698701,127.17,127.14,0.66]
[1767190338103,4.83354305,127.17,127.14,0.66]
[1767190338302,4.83354305,127.16,127.13,0.66]
[1767190338600,5.53354305,127.16,127.13,0.66]
[1767190339421,0.7,127.16,127.13,0.66]
[1767190339618,7.96313684,127.18,127.1,0.7]
[1767190339913,4.83354305,127.13,127.1,0.7]
[1767190340495,0.7,127.14,127.1,0.7]
[1767190340700,0.7,127.14,127.1,8.567382]
[1767190340701,4.83354305,127.13,127.1,8.567382]
[1767190340901,0.7,127.16,127.12,5.51354305]
[1767190341104,5.53354305,127.16,127.12,5.51354305]
[1767190342307,4.83354305,127.15,127.12,0.68]
[1767190342707,4.83354305,127.14,127.11,0.68]
[1767190343012,4.83354305,127.14,127.1,8.547382]
[1767190343013,4.83354305,127.13,127.1,8.547382]
[1767190343211,0.7,127.14,127.11,8.54716383]
[1767190344017,0.7,127.14,127.11,0.68]
[1767190344219,5.53354305,127.14,127.11,0.68]
[1767190344810,0.7,127.14,127.11,0.68]
[1767190345008,5.53354305,127.14,127.11,0.68]
[1767190345204,5.53354305,127.14,127.11,8.54719606]
[1767190346122,5.53354305,127.14,127.11,0.68]
[1767190346545,5.53354305,127.14,127.11,8.54711446]
[1767190347021,0.1,127.18,127.11,7.86711446]
[1767190347218,5.53354305,127.16,127.12,0.68]
[1767190347801,0.7,127.15,127.12,0.68]
[1767190348001,0.7,127.15,127.12,63.48]
[1767190348696,5.53354305,127.15,127.12,63.48]
[1767190348902,4.83354305,127.14,127.12,63.48]
[1767190349140,4.83354305,127.14,127.11,0.68]
[1767190350139,0.7,127.15,127.11,0.68]
[1767190350330,4.83354305,127.14,127.11,0.68]
[1767190350539,5.53354305,127.13,127.1,62.8]
[1767190350849,4.83354305,127.11,127.06,0.68]
[1767190351139,4.83354305,127.08,127.06,0.68]
[1767190351438,4.83354305,127.07,127.05,8.55064273]
[1767190351613,0.7,127.09,127.05,8.55064273]
[1767190351938,4.83354305,127.08,127.05,8.55064273]
[1767190352433,14.36,127.11,127.03,4.83354305]
[1767190352434,4.83354305,127.06,127.03,8.55177554]
[1767190352646,0.7,127.09,127.04,5.51354305]
[1767190352809,0.7,127.09,127.06,7.87026733]
[1767190352810,5.53354305,127.09,127.06,7.87026733]
[1767190353427,0.7,127.14,127.08,5.51354305]
[1767190353631,10.71281236,127.13,127.1,0.68]
[1767190353835,5.53354305,127.13,127.09,4.83354305]
[1767190354010,0.7,127.13,127.1,0.68]
[1767190354327,5.53354305,127.13,127.1,0.68]
[1767190354836,0.7,127.13,127.1,0.68]
[1767190355033,5.53354305,127.13,127.1,0.68]
[1767190355235,5.53354305,127.13,127.09,12.70167237]
[1767190355528,4.83354305,127.11,127.08,7.86901429]
[1767190355725,0.7,127.12,127.08,7.86901429]
[1767190355930,4.83354305,127.11,127.07,8.54950539]
[1767190356130,0.7,127.11,127.08,7.86904714]
[1767190356320,5.53354305,127.11,127.07,13.38294883]
[1767190357210,0.7,127.11,127.07,13.38294883]
[1767190357437,5.53354305,127.11,127.07,13.38294883]
[1767190357733,5.53354305,127.11,127.07,8.54940578]
[1767190357922,4.83354305,127.1,127.07,8.54940578]
[1767190358429,5.53354305,127.12,127.08,5.51354305]
[1767190359939,0.7,127.12,127.08,13.38258745]
[1767190360237,5.53354305,127.12,127.08,76.18258745]
[1767190361516,5.53354305,127.12,127.08,71.3490444]
[1767190361717,0.7,127.12,127.08,71.3490444]
[1767190361913,0.7,127.11,127.05,0.68]
[1767190362118,0.7,127.11,127.07,13.38316421]
[1767190362328,7.86348981,127.17,127.09,4.83354305]
[1767190362329,0.7,127.13,127.09,4.83354305]
[1767190362540,5.53354305,127.12,127.08,8.54904901]
[1767190362738,5.53354305,127.12,127.08,13.38259206]
[1767190363233,5.53354305,127.12,127.08,8.54904901]
[1767190363435,5.53354305,127.12,127.08,13.38259206]
[1767190363638,0.7,127.12,127.08,13.38259206]
[1767190363943,5.53354305,127.12,127.08,13.38259206]
[1767190364537,0.7,127.12,127.08,8.54904901]
[1767190364836,5.53354305,127.12,127.08,13.38259206]
[1767190365018,0.7,127.12,127.08,13.38259206]
[1767190365220,5.53354305,127.12,127.08,13.38259206]
[1767190366239,0.7,127.12,127.08,13.38259206]
[1767190366434,5.53354305,127.12,127.08,8.54904901]
[1767190366937,5.53354305,127.12,127.08,0.68]
[1767190367141,5.53354305,127.12,127.08,8.54897645]
[1767190367815,0.7,127.12,127.08,8.54897645]
[1767190368015,5.53354305,127.12,127.08,8.54897645]
[1767190369143,5.53354305,127.11,127.08,0.68]
[1767190370531,5.54354305,127.1,127.06,13.35335294]
[1767190370739,5.54354305,127.1,127.07,7.86960948]
[1767190371137,5.54354305,127.1,127.07,8.51960948]
[1767190371754,0.71,127.1,127.07,71.31960948]
[1767190372054,5.54354305,127.1,127.07,71.31960948]
[1767190372259,5.54354305,127.1,127.07,63.45]
[1767190372552,3.80592278,127.1,127.07,71.31960982]
[1767190372936,0.71,127.1,127.07,71.31960982]
[1767190373131,3.80592278,127.1,127.07,71.31960982]
[1767190373330,0.71,127.1,127.07,71.31960982]
[1767190373529,3.80592278,127.1,127.07,71.31960982]
[1767190373732,3.80592278,127.1,127.07,63.45]
[1767190374344,3.80592278,127.1,127.07,71.319639]
[1767190375153,3.80592278,127.11,127.07,74.41556178]
[1767190375330,3.80592278,127.11,127.07,71.319639]
[1767190375532,3.80592278,127.11,127.07,74.41556178]
[1767190376351,3.80592278,127.11,127.08,0.65]
[1767190376532,3.09592278,127.11,127.08,0.65]
[1767190377347,3.09592278,127.12,127.08,3.74592278]
[1767190377543,0.71,127.11,127.08,3.74592278]
[1767190377749,0.71,127.11,127.08,66.54592278]
[1767190379253,0.71,127.17,127.09,3.74592278]
[1767190379452,0.71,127.17,127.08,70.66874174]
[1767190379453,5.88147585,127.16,127.13,0.65]
[1767190379762,3.80592278,127.15,127.12,0.65]
[1767190380054,0.71,127.15,127.12,3.74592278]
[1767190380432,0.71,127.15,127.12,0.65]
[1767190380636,3.80592278,127.17,127.13,3.09592278]
[1767190380830,0.1,127.18,127.15,3.09592278]
[1767190381047,0.71,127.22,127.18,0.65]
[1767190381334,0.71,127.22,127.18,3.71600349]
[1767190381335,3.80592278,127.22,127.18,3.71600349]
[1767190381757,3.80592278,127.21,127.15,19.6615824]
[1767190382054,3.09592278,127.2,127.16,10.9599712]
[1767190383237,3.80592278,127.18,127.14,0.65]
[1767190383453,3.09592278,127.17,127.14,0.65]
[1767190383847,0.71,127.17,127.13,11.61166992]
[1767190384043,3.09592278,127.18,127.15,0.65]
[1767190384358,0.71,127.19,127.15,3.74592278]
[1767190384565,3.80592278,127.19,127.15,3.74592278]
[1767190385345,3.80592278,127.19,127.15,0.65]
[1767190385651,3.09592278,127.17,127.14,0.65]
[1767190386265,3.80592278,127.15,127.12,0.65]
[1767190386466,3.09592278,127.14,127.12,8.51646532]
[1767190386640,3.80592278,127.15,127.12,8.51646532]
[1767190386835,3.80592278,127.15,127.12,0.65]
[1767190387061,3.09592278,127.14,127.11,7.8671307]
[1767190389234,0.71,127.15,127.11,7.8671307]
[1767190389444,3.09592278,127.15,127.12,0.65]
[1767190389650,0.71,127.16,127.12,0.65]
[1767190389946,3.80592278,127.16,127.12,3.74592278]
[1767190390159,0.71,127.16,127.13,0.65]
[1767190390357,0.71,127.18,127.15,3.09592278]
[1767190390647,0.71,127.19,127.15,3.74592278]
[1767190391162,3.80592278,127.19,127.15,3.74592278]
[1767190391880,0.71,127.19,127.15,3.74592278]
[1767190392049,3.80592278,127.19,127.15,0.65]
[1767190392248,3.80592278,127.19,127.16,7.86410821]
[1767190393350,0.71,127.19,127.15,7.86440994]
[1767190393670,3.09592278,127.17,127.14,70.66515175]
[1767190393970,3.09592278,127.17,127.13,3.74592278]
[1767190393971,3.09592278,127.16,127.13,8.51566104]
[1767190394164,0.71,127.17,127.14,7.86522375]
[1767190394165,3.80592278,127.17,127.14,7.86522375]
[1767190394878,3.09592278,127.18,127.15,0.65]
[1767190395546,3.09592278,127.16,127.14,7.86522375]
[1767190395851,3.09592278,127.16,127.13,8.51581971]
[1767190396646,0.71,127.17,127.13,8.51581971]
[1767190397167,3.80592278,127.19,127.15,3.74592278]
[1767190397969,0.71,127.19,127.15,3.74592278]
[1767190398162,3.80592278,127.19,127.15,66.54592278]
[1767190399083,3.80592278,127.19,127.15,71.31439079]
[1767190399263,0.71,127.19,127.15,71.31439079]
[1767190399464,3.77592278,127.2,127.16,3.78592278]
[1767190399768,3.77592278,127.2,127.17,0.69]
[1767190400747,18.11592278,127.21,127.17,3.78592278]
[1767190400949,18.11592278,127.21,127.17,66.58592278]
[1767190401150,18.11592278,127.21,127.17,71.3532201]
[1767190401851,18.11592278,127.21,127.17,74.44914288]
[1767190402984,3.09592278,127.2,127.17,71.3532201]
[1767190403162,3.09592278,127.2,127.17,62.8]
[1767190403458,3.75592278,127.2,127.17,62.8]
[1767190403775,0.66,127.2,127.17,62.8]
[1767190403971,3.75592278,127.2,127.16,71.38404595]
[1767190404371,0.66,127.2,127.16,71.38404595]
[1767190404575,0.66,127.2,127.16,74.47996873]
[1767190404750,0.66,127.19,127.16,71.38404595]
[1767190404950,3.75592278,127.18,127.16,62.8]
[1767190405384,3.75592278,127.17,127.13,7.86567038]
[1767190405674,17.45592278,127.2,127.13,7.86567038]
[1767190405675,3.09592278,127.16,127.13,7.86567038]
[1767190405893,3.75592278,127.16,127.13,7.86567038]
[1767190406052,0.66,127.16,127.13,7.86567038]
[1767190406257,0.66,127.19,127.13,8.58567038]
[1767190406472,3.75592278,127.16,127.13,7.86567038]
[1767190407258,3.09592278,127.16,127.13,8.58567038]
[1767190407678,0.66,127.17,127.13,8.58567038]
[1767190407884,3.75592278,127.17,127.14,0.72]
[1767190408170,3.75592278,127.18,127.14,3.81592278]
[1767190408374,0.66,127.18,127.14,11.68107049]
[1767190408566,3.75592278,127.18,127.14,11.68107049]
[1767190408764,3.09592278,127.17,127.14,8.58514771]
[1767190412382,0.66,127.18,127.14,8.58514771]
[1767190412680,3.09592278,127.2,127.16,3.81592278]
[1767190412879,3.75592278,127.2,127.16,3.81592278]
[1767190413179,0.66,127.2,127.17,3.81592278]
[1767190413777,0.66,127.2,127.17,0.72]
[1767190414101,0.66,127.2,127.17,8.58331376]
[1767190414663,0.66,127.2,127.17,11.67923654]
[1767190415480,0.66,127.2,127.17,8.58331376]
[1767190415680,0.66,127.2,127.17,11.67923654]
[1767190417683,0.66,127.2,127.17,8.58331376]
[1767190417889,3.75592278,127.2,127.17,8.58331376]
[1767190418762,3.75592278,127.2,127.17,0.72]
[1767190419191,0.66,127.2,127.17,0.72]
[1767190419391,3.75592278,127.2,127.17,0.72]
[1767190419594,3.75592278,127.2,127.17,8.58340774]
[1767190420976,3.75592278,127.2,127.17,0.72]
[1767190421370,3.75592278,127.2,127.17,8.58338612]
[1767190422603,0.66,127.18,127.14,0.72]
[1767190422785,3.75592278,127.18,127.14,3.81592278]
[1767190423400,3.75592278,127.18,127.14,0.72]
[1767190424193,3.75592278,127.18,127.15,7.86442856]
[1767190425392,3.09592278,127.17,127.15,7.86442856]
[1767190425701,3.09592278,127.17,127.14,8.58502445]
[1767190426081,0.66,127.18,127.14,31.34431045]
[1767190426283,0.66,127.2,127.17,3.81592278]
[1767190426485,5.88659341,127.19,127.17,3.81592278]
[1767190426685,0.66,127.2,127.17,3.81592278]
[1767190426885,5.88627562,127.19,127.17,0.72]
[1767190427089,3.75592278,127.2,127.17,0.72]
[1767190427291,5.88657747,127.19,127.17,0.72]
[1767190427484,3.75592278,127.2,127.17,0.72]
[1767190427683,5.88657644,127.19,127.17,8.58348465]
[1767190427909,3.75592278,127.22,127.17,30.61813197]
[1767190428109,3.75592278,127.22,127.18,0.72]
[1767190428110,5.88618721,127.21,127.18,0.72]
[1767190428397,5.88618721,127.2,127.18,0.72]
[1767190428974,8.98210999,127.2,127.17,8.58348465]
[1767190429201,3.09592278,127.2,127.17,8.58348465]
[1767190429589,3.75592278,127.2,127.17,7.86348465]
[1767190429777,3.09592278,127.18,127.15,70.66448447]
[1767190429983,3.09592278,127.18,127.14,8.58510555]
[1767190429984,3.75592278,127.18,127.14,8.58510555]
[1767190430183,3.09592278,127.17,127.14,8.58510555]
[1767190431197,3.09592278,127.17,127.13,25.32161598]
[1767190431198,3.80592278,127.17,127.13,25.32161598]
[1767190431377,3.80592278,127.17,127.13,8.5656932]
[1767190431378,0.71,127.16,127.13,8.5656932]
[1767190431796,0.71,127.17,127.14,0.7]
[1767190431992,3.09592278,127.17,127.14,0.7]
[1767190432188,0.71,127.19,127.14,3.09592278]
[1767190432392,9.69395575,127.18,127.14,3.79592278]
[1767190432592,3.80592278,127.18,127.14,3.79592278]
[1767190433081,5.88965062,127.17,127.14,11.66086346]
[1767190433407,3.80592278,127.17,127.14,8.56494068]
[1767190433709,0.71,127.17,127.14,8.56494068]
[1767190433898,3.80592278,127.17,127.14,8.56494068]
[1767190434482,5.54207052,127.17,127.14,8.56494068]
[1767190439208,0.71,127.16,127.14,7.86494068]
[1767190439692,5.54207052,127.17,127.14,7.86494068]
[1767190439996,5.54207052,127.17,127.14,8.56494068]
[1767190440712,1e-08,127.15,127.13,70.6656781]
[1767190440907,4.83207052,127.2,127.13,70.6656781]
[1767190440908,5.54207052,127.16,127.13,70.6656781]
[1767190441209,5.54207052,127.17,127.13,76.19774862]
[1767190441385,5.89280284,127.16,127.13,71.3656781]
[1767190441584,0.71,127.17,127.13,76.19774862]
[1767190441785,5.89280091,127.16,127.13,71.3656781]
[1767190442099,5.54207052,127.17,127.13,71.3656781]
[1767190442298,5.89246512,127.16,127.13,71.3656781]
[1767190442496,5.54207052,127.17,127.13,71.3656781]
[1767190442695,5.89246409,127.16,127.13,71.3656781]
[1767190442996,4.83207052,127.16,127.13,71.3656781]
[1767190443182,0.71,127.21,127.15,0.7]
[1767190443389,5.54207052,127.18,127.15,0.7]
[1767190443588,10.72413597,127.17,127.14,71.36502198]
[1767190443790,4.83207052,127.17,127.14,71.36502198]
[1767190444011,5.54207052,127.17,127.14,71.36502198]
[1767190444708,5.54207052,127.17,127.14,63.5]
[1767190445511,5.54207052,127.17,127.14,62.8]
[1767190445695,0.71,127.16,127.14,62.8]
[1767190446108,5.54207052,127.16,127.14,62.8]
[1767190446403,0.71,127.19,127.14,62.8]
[1767190446585,5.54207052,127.16,127.14,62.8]
[1767190447606,4.83207052,127.15,127.14,61.23]
[1767190447804,4.83207052,127.15,127.12,69.79648647]
[1767190448008,4.83207052,127.15,127.12,69.09648647]
[1767190448207,4.83207052,127.15,127.12,69.79648647]
[1767190448709,4.83207052,127.15,127.13,0.7]
[1767190449092,12.6937092,127.2,127.13,0.7]
[1767190449300,4.83207052,127.15,127.13,0.7]
[1767190449907,4.83207052,127.18,127.14,4.83207052]
[1767190450103,5.89248877,127.17,127.15,0.7]
[1767190450309,5.89248877,127.16,127.15,0.7]
[1767190450507,5.89248877,127.16,127.13,69.09566006]
[1767190450815,5.89248877,127.16,127.14,0.7]
[1767190450816,4.83207052,127.16,127.14,0.7]
[1767190452621,14.36,127.19,127.11,0.7]
[1767190452622,4.83207052,127.15,127.11,0.7]
[1767190452800,4.83207052,127.12,127.11,0.7]
[1767190453301,4.83207052,127.14,127.11,8.56712878]
[1767190453617,4.83207052,127.16,127.13,0.7]
[1767190453797,5.89197018,127.15,127.13,0.7]
[1767190454119,4.83207052,127.16,127.13,0.7]
[1767190454296,5.89096404,127.15,127.13,0.7]
[1767190454495,4.83207052,127.16,127.13,0.7]
[1767190454692,5.17096301,127.15,127.13,12.69798487]
[1767190454911,4.83207052,127.17,127.14,0.7]
[1767190455619,0.71,127.17,127.13,0.7]
[1767190455809,4.83207052,127.16,127.13,0.7]
[1767190456317,4.83207052,127.16,127.12,12.69834959]
[1767190456318,4.83207052,127.15,127.12,7.86627907]
[1767190456525,4.83207052,127.15,127.12,8.56627907]
[1767190456820,4.83207052,127.15,127.13,0.7]
[1767190460407,4.83207052,127.15,127.12,61.23]
[1767190460600,0.72,127.19,127.11,8.58710236]
[1767190460928,4.83207052,127.14,127.12,0.72]
[1767190461112,4.80207053,127.14,127.11,8.58710236]
[1767190461303,5.55207052,127.15,127.12,0.72]
[1767190464310,4.83207052,127.14,127.11,0.72]
[1767190465328,4.83207052,127.13,127.11,0.72]
[1767190466714,5.55207052,127.13,127.1,7.8675778]
[1767190466915,4.83207052,127.13,127.1,8.5875778]
[1767190467327,4.83207052,127.13,127.11,8.5871875]
[1767190467727,4.83207052,127.13,127.11,0.72]
[1767190468432,4.83207052,127.12,127.09,8.58818866]
[1767190468910,4.83207052,127.12,127.09,0.72]
[1767190469116,0.72,127.12,127.09,0.72]
[1767190469324,4.83207052,127.11,127.09,0.72]
[1767190469528,4.83207052,127.11,127.08,8.58881947]
[1767190470730,4.83207052,127.12,127.09,0.72]
[1767190472612,0.72,127.13,127.09,0.72]
[1767190472812,4.83207052,127.12,127.09,0.72]
[1767190473013,4.83207052,127.12,127.09,8.5882905]
[1767190473424,0.72,127.13,127.09,8.5882905]
[1767190473623,4.83207052,127.12,127.09,8.5882905]
[1767190474540,4.83207052,127.13,127.1,0.72]
[1767190475022,0.72,127.14,127.11,0.72]
[1767190475211,5.55207052,127.14,127.11,0.72]
[1767190475410,4.83207052,127.13,127.11,0.72]
[1767190476035,5.55207052,127.15,127.11,5.55207052]
[1767190476212,5.88065153,127.14,127.11,5.55207052]
[1767190476414,5.55207052,127.15,127.11,5.55207052]
[1767190476611,5.88064755,127.14,127.11,5.55207052]
[1767190476811,5.55207052,127.15,127.11,5.55207052]
[1767190477032,5.88064755,127.14,127.11,5.55207052]
[1767190477212,5.55207052,127.15,127.12,0.72]
[1767190477412,0.72,127.15,127.12,0.72]
[1767190477717,19.19207052,127.16,127.12,0.72]
[1767190477912,5.88023815,127.15,127.12,0.72]
[1767190478114,19.91207052,127.16,127.12,0.72]
[1767190478314,5.88012918,127.15,127.12,0.72]
[1767190478515,5.55207052,127.15,127.12,0.72]
[1767190479036,5.55207052,127.14,127.1,0.72]
[1767190479225,5.55207052,127.14,127.1,13.41959606]
[1767190479617,0.72,127.14,127.1,13.41959606]
[1767190479944,4.83207052,127.16,127.13,0.72]
[1767190480139,5.88002993,127.15,127.13,0.72]
[1767190480317,5.55207052,127.16,127.13,0.72]
[1767190481675,5.55207052,127.16,127.12,5.55207052]
[1767190483243,0.72,127.16,127.12,5.55207052]
[1767190483419,5.55207052,127.16,127.12,5.55207052]
[1767190483620,5.55207052,127.16,127.12,13.41838445]
[1767190484235,0.72,127.16,127.12,8.58631393]
[1767190484559,4.83207052,127.15,127.12,0.72]
[1767190484847,4.83207052,127.15,127.12,7.8664674]
[1767190485024,4.83207052,127.15,127.13,0.72]
[1767190485823,4.83207052,127.14,127.13,0.72]
[1767190486125,4.83207052,127.15,127.13,0.72]
[1767190488648,5.55207052,127.14,127.11,61.23]